[Event "Masters Tournament (MTO)"]
[Site "Biel, Switzerland"]
[Date "2026.07.14"]
[Round "2.30"]
[White "Oestmann, Lukas"]
[Black "Kunz, Andre"]
[Result "1/2-1/2"]
[TimeControl "100+30+30sec/move"]
[WhiteTitle "-"]
[BlackTitle "-"]
[WhiteFideId "1326457"]
[BlackFideId "24623652"]
[WhiteElo "1998"]
[BlackElo "2116"]

1. e4 {[%clk 01:40:58]} {[%emt 00:00:01]} c6 {[%clk 01:38:27]} {[%emt
00:02:34]} 2. d4 {[%clk 01:41:24]} {[%emt 00:00:04]} d5 {[%clk 01:38:47]}
{[%emt 00:00:09]} 3. exd5 {[%clk 01:41:49]} {[%emt 00:00:06]} cxd5 {[%clk
01:39:15]} {[%emt 00:00:02]} 4. c4 {[%clk 01:42:12]} {[%emt 00:00:07]} Nf6
{[%clk 01:39:18]} {[%emt 00:00:26]} 5. Nc3 {[%clk 01:42:37]} {[%emt 00:00:05]}
Nc6 {[%clk 01:39:22]} {[%emt 00:00:27]} 6. Nf3 {[%clk 01:42:58]} {[%emt
00:00:08]} a6 {[%clk 01:38:49]} {[%emt 00:01:03]} 7. cxd5 {[%clk 01:39:35]}
{[%emt 00:03:54]} Nxd5 {[%clk 01:39:18]} {[%emt 00:00:01]} 8. Bc4 {[%clk
01:38:57]} {[%emt 00:01:09]} e6 {[%clk 01:38:57]} {[%emt 00:00:50]} 9. O-O
{[%clk 01:36:24]} {[%emt 00:03:03]} Be7 {[%clk 01:36:32]} {[%emt 00:02:57]} 10.
Re1 {[%clk 01:32:48]} {[%emt 00:04:04]} O-O {[%clk 01:36:39]} {[%emt 00:00:23]}
11. a3 {[%clk 01:32:23]} {[%emt 00:00:55]} b5 {[%clk 01:34:49]} {[%emt
00:02:21]} 12. Bd3 {[%clk 01:29:05]} {[%emt 00:03:47]} Bf6 {[%clk 01:32:11]}
{[%emt 00:03:09]} 13. Qc2 {[%clk 01:23:22]} {[%emt 00:06:12]} Nxd4 {[%clk
01:29:11]} {[%emt 00:03:30]} 14. Nxd4 {[%clk 01:21:46]} {[%emt 00:02:06]} Bxd4
{[%clk 01:29:38]} {[%emt 00:00:02]} 15. Bxh7+ {[%clk 01:22:11]} {[%emt
00:00:07]} Kh8 {[%clk 01:30:03]} {[%emt 00:00:05]} 16. Nxd5 {[%clk 01:17:54]}
{[%emt 00:04:47]} exd5 {[%clk 01:29:41]} {[%emt 00:00:51]} 17. Be3 {[%clk
01:12:36]} {[%emt 00:05:47]} Bf6 {[%clk 01:25:30]} {[%emt 00:04:42]} 18. Bd3
{[%clk 01:07:09]} {[%emt 00:05:56]} Bb7 {[%clk 01:19:55]} {[%emt 00:06:06]} 19.
Qe2 {[%clk 01:03:51]} {[%emt 00:03:48]} g6 {[%clk 01:19:34]} {[%emt 00:00:51]}
20. Bc5 {[%clk 00:57:50]} {[%emt 00:06:30]} Re8 {[%clk 01:18:29]} {[%emt
00:01:37]} 21. Qf3 {[%clk 00:57:59]} {[%emt 00:00:20]} Kg7 {[%clk 01:16:28]}
{[%emt 00:02:31]} 22. Rab1 {[%clk 00:49:53]} {[%emt 00:08:38]} Qd7 {[%clk
01:10:48]} {[%emt 00:06:08]} 23. Be3 {[%clk 00:41:07]} {[%emt 00:09:15]} Re6
{[%clk 01:07:17]} {[%emt 00:04:03]} 24. Qf4 {[%clk 00:38:07]} {[%emt 00:03:29]}
Qe7 {[%clk 01:00:53]} {[%emt 00:06:54]} 25. Rec1 {[%clk 00:37:42]} {[%emt
00:00:55]} Be5 {[%clk 00:56:30]} {[%emt 00:04:53]} 26. Qh6+ {[%clk 00:35:44]}
{[%emt 00:02:27]} Kg8 {[%clk 00:56:29]} {[%emt 00:00:32]} 27. h4 {[%clk
00:32:32]} {[%emt 00:03:42]} Bg7 {[%clk 00:54:20]} {[%emt 00:02:39]} 28. Qf4
{[%clk 00:30:59]} {[%emt 00:02:03]} Be5 {[%clk 00:50:28]} {[%emt 00:04:22]} 29.
Qh6 {[%clk 00:30:37]} {[%emt 00:00:52]} Qf8 {[%clk 00:45:02]} {[%emt 00:05:56]}
30. Qg5 {[%clk 00:30:19]} {[%emt 00:00:47]} Qg7 {[%clk 00:43:18]} {[%emt
00:02:14]} 31. b4 {[%clk 00:27:41]} {[%emt 00:03:09]} Rae8 {[%clk 00:41:57]}
{[%emt 00:04:11]} 32. Bf4 {[%clk 00:25:30]} {[%emt 00:00:21]} Bf6 {[%clk
00:36:17]} {[%emt 00:06:10]} 33. Qg3 {[%clk 00:24:24]} {[%emt 00:01:36]} Qh8
{[%clk 00:35:01]} {[%emt 00:01:47]} 34. Bg5 {[%clk 00:24:39]} {[%emt 00:00:14]}
Be5 {[%clk 00:31:07]} {[%emt 00:04:25]} 35. Bf4 {[%clk 00:24:49]} {[%emt
00:00:19]} Bf6 {[%clk 00:25:20]} {[%emt 00:06:17]} 36. Bg5 {[%clk 00:25:02]}
{[%emt 00:00:17]} Be5 {[%clk 00:22:36]} {[%emt 00:03:15]} 37. Bf4 {[%clk
00:24:34]} {[%emt 00:00:57]} Bf6 {[%clk 00:22:02]} {[%emt 00:01:05]} 1/2-1/2

[Event "Masters Tournament (MTO)"]
[Site "Biel, Switzerland"]
[Date "2026.07.14"]
[Round "2.31"]
[White "Kwiatkowski, Jakub"]
[Black "Malli, Shiivesh Sunil"]
[Result "1-0"]
[TimeControl "100+30+30sec/move"]
[WhiteTitle "-"]
[BlackTitle "-"]
[WhiteFideId "1348736"]
[BlackFideId "1340409"]
[WhiteElo "2107"]
[BlackElo "1994"]

1. e4 {[%clk 01:40:56]} {[%emt 00:00:03]} c5 {[%clk 01:40:47]} {[%emt
00:00:12]} 2. Nf3 {[%clk 01:41:06]} {[%emt 00:00:20]} Nc6 {[%clk 01:41:11]}
{[%emt 00:00:06]} 3. Bb5 {[%clk 01:41:25]} {[%emt 00:00:12]} g6 {[%clk
01:41:30]} {[%emt 00:00:10]} 4. O-O {[%clk 01:41:46]} {[%emt 00:00:09]} Bg7
{[%clk 01:41:57]} {[%emt 00:00:04]} 5. c3 {[%clk 01:42:03]} {[%emt 00:00:13]}
e5 {[%clk 01:42:18]} {[%emt 00:00:08]} 6. d4 {[%clk 01:42:24]} {[%emt
00:00:10]} cxd4 {[%clk 01:41:29]} {[%emt 00:01:18]} 7. cxd4 {[%clk 01:42:43]}
{[%emt 00:00:11]} exd4 {[%clk 01:37:44]} {[%emt 00:04:15]} 8. Bf4 {[%clk
01:43:03]} {[%emt 00:00:11]} a6 {[%clk 01:35:55]} {[%emt 00:02:20]} 9. Bc4
{[%clk 01:43:25]} {[%emt 00:00:07]} d6 {[%clk 01:29:55]} {[%emt 00:06:32]} 10.
Qb3 {[%clk 01:41:55]} {[%emt 00:01:59]} Qe7 {[%clk 01:29:00]} {[%emt 00:01:23]}
11. Bxd6 {[%clk 01:34:22]} {[%emt 00:08:05]} Qxd6 {[%clk 01:05:20]} {[%emt
00:24:10]} 12. Bxf7+ {[%clk 01:34:33]} {[%emt 00:00:19]} Kd8 {[%clk 00:50:47]}
{[%emt 00:15:03]} 13. Bxg8 {[%clk 01:33:57]} {[%emt 00:01:07]} Qe7 {[%clk
00:46:47]} {[%emt 00:04:29]} 14. Bd5 {[%clk 01:32:01]} {[%emt 00:02:26]} Kc7
{[%clk 00:46:07]} {[%emt 00:01:10]} 15. Nbd2 {[%clk 01:31:30]} {[%emt
00:01:02]} Bd7 {[%clk 00:44:41]} {[%emt 00:01:55]} 16. Rac1 {[%clk 01:27:16]}
{[%emt 00:04:44]} Raf8 {[%clk 00:34:50]} {[%emt 00:10:21]} 17. Nc4 {[%clk
01:18:59]} {[%emt 00:08:46]} g5 {[%clk 00:23:38]} {[%emt 00:11:43]} 18. Qb6+
{[%clk 01:17:37]} {[%emt 00:01:51]} Kb8 {[%clk 00:23:07]} {[%emt 00:01:02]} 19.
Na5 {[%clk 01:13:06]} {[%emt 00:05:02]} Nxa5 {[%clk 00:16:09]} {[%emt
00:07:28]} 20. Rc7 {[%clk 01:13:17]} {[%emt 00:00:18]} 1-0

[Event "Masters Tournament (MTO)"]
[Site "Biel, Switzerland"]
[Date "2026.07.14"]
[Round "2.32"]
[White "Di Candia, Roberto"]
[Black "Ragavan, Samarth Rajesh"]
[Result "0-1"]
[TimeControl "100+30+30sec/move"]
[WhiteTitle "-"]
[BlackTitle "-"]
[WhiteFideId "856649"]
[BlackFideId "39918106"]
[WhiteElo "1988"]
[BlackElo "2106"]

1. c4 {[%clk 01:40:58]} {[%emt 00:00:02]} Nf6 {[%emt 00:00:19]} 2. Nf3 {[%clk
01:41:07]} {[%emt 00:00:07]} c5 {[%clk 01:41:20]} {[%emt 00:00:06]} 3. g3
{[%clk 01:41:24]} {[%emt 00:00:13]} g6 {[%clk 01:41:38]} {[%emt 00:00:12]} 4.
Bg2 {[%clk 01:41:40]} {[%emt 00:00:14]} Bg7 {[%clk 01:42:02]} {[%emt 00:00:06]}
5. Nc3 {[%clk 01:41:29]} {[%emt 00:00:41]} O-O {[%clk 01:42:23]} {[%emt
00:00:09]} 6. O-O {[%clk 01:41:50]} {[%emt 00:00:08]} d6 {[%clk 01:42:38]}
{[%emt 00:00:15]} 7. d4 {[%clk 01:42:04]} {[%emt 00:00:17]} Nc6 {[%clk
01:42:54]} {[%emt 00:00:14]} 8. d5 {[%clk 01:32:11]} {[%emt 00:10:24]} Na5
{[%clk 01:42:48]} {[%emt 00:00:36]} 9. Qd3 {[%clk 01:30:35]} {[%emt 00:02:06]}
a6 {[%clk 01:37:07]} {[%emt 00:06:11]} 10. b3 {[%clk 01:16:11]} {[%emt
00:14:54]} Bf5 {[%clk 01:36:46]} {[%emt 00:00:51]} 11. Qe3 {[%clk 01:14:11]}
{[%emt 00:02:30]} b5 {[%clk 01:36:59]} {[%emt 00:00:18]} 12. cxb5 {[%clk
01:08:04]} {[%emt 00:06:36]} axb5 {[%clk 01:37:01]} {[%emt 00:00:28]} 13. Nh4
{[%clk 01:08:22]} {[%emt 00:00:12]} Nxb3 {[%clk 01:33:03]} {[%emt 00:04:29]} 14.
Nxf5 {[%clk 01:08:32]} {[%emt 00:00:20]} gxf5 {[%clk 01:33:22]} {[%emt
00:00:10]} 15. Rb1 {[%clk 01:04:22]} {[%emt 00:04:40]} Nxc1 {[%clk 01:33:44]}
{[%emt 00:00:08]} 16. Rfxc1 {[%clk 01:04:43]} {[%emt 00:00:08]} b4 {[%clk
01:34:04]} {[%emt 00:00:11]} 17. Nd1 {[%clk 01:04:49]} {[%emt 00:00:24]} Rxa2
{[%clk 01:34:27]} {[%emt 00:00:07]} 18. Qd3 {[%clk 00:57:24]} {[%emt 00:07:55]}
e6 {[%clk 01:34:15]} {[%emt 00:00:41]} 19. dxe6 {[%clk 00:57:18]} {[%emt
00:00:36]} fxe6 {[%clk 01:34:38]} {[%emt 00:00:08]} 20. Qc4 {[%clk 00:57:36]}
{[%emt 00:00:12]} Rd2 {[%clk 01:34:17]} {[%emt 00:00:50]} 21. Qxe6+ {[%clk
00:57:40]} {[%emt 00:00:26]} Kh8 {[%clk 01:34:36]} {[%emt 00:00:11]} 22. Ne3
{[%clk 00:47:35]} {[%emt 00:10:36]} Rxe2 {[%clk 01:34:36]} {[%emt 00:00:30]} 23.
Qc4 {[%clk 00:44:42]} {[%emt 00:03:23]} Rxe3 {[%clk 01:33:42]} {[%emt
00:01:24]} 24. fxe3 {[%clk 00:45:06]} {[%emt 00:00:06]} Ng4 {[%clk 01:34:06]}
{[%emt 00:00:07]} 25. Re1 {[%clk 00:40:09]} {[%emt 00:05:26]} Re8 {[%clk
01:32:03]} {[%emt 00:02:33]} 26. Rbd1 {[%clk 00:32:26]} {[%emt 00:08:13]} Nxe3
{[%clk 01:31:03]} {[%emt 00:01:30]} 27. Bc6 {[%clk 00:30:58]} {[%emt 00:01:58]}
Re5 {[%clk 01:28:58]} {[%emt 00:02:35]} 28. Rxe3 {[%clk 00:30:59]} {[%emt
00:00:30]} Rxe3 {[%clk 01:28:04]} {[%emt 00:01:24]} 29. Qxc5 {[%clk 00:31:14]}
{[%emt 00:00:15]} Re1+ {[%clk 01:27:41]} {[%emt 00:00:52]} 30. Rxe1 {[%clk
00:31:34]} {[%emt 00:00:10]} dxc5 {[%clk 01:28:07]} {[%emt 00:00:04]} 31. Re8+
{[%clk 00:31:53]} {[%emt 00:00:11]} Qxe8 {[%clk 01:28:33]} {[%emt 00:00:04]} 32.
Bxe8 {[%clk 00:32:19]} {[%emt 00:00:04]} Bd4+ {[%clk 01:26:51]} {[%emt
00:02:12]} 33. Kg2 {[%clk 00:28:04]} {[%emt 00:04:45]} Kg7 {[%clk 01:27:18]}
{[%emt 00:00:03]} 34. Kf3 {[%clk 00:26:01]} {[%emt 00:02:33]} Kf6 {[%clk
01:27:43]} {[%emt 00:00:04]} 35. Kf4 {[%clk 00:24:53]} {[%emt 00:01:39]} Bb2
{[%clk 01:27:07]} {[%emt 00:01:06]} 36. Ke3 {[%clk 00:24:33]} {[%emt 00:00:50]}
Ke5 {[%clk 01:27:21]} {[%emt 00:00:16]} 37. Kd3 {[%clk 00:24:46]} {[%emt
00:00:17]} Bd4 {[%clk 01:27:45]} {[%emt 00:00:06]} 38. Bf7 {[%clk 00:20:15]}
{[%emt 00:05:01]} Bg1 {[%clk 01:28:05]} {[%emt 00:00:09]} 39. h3 {[%clk
00:20:28]} {[%emt 00:00:18]} Bf2 {[%clk 01:28:32]} {[%emt 00:00:03]} 40. g4
{[%clk 00:20:39]} {[%emt 00:00:19]} f4 {[%clk 01:28:58]} {[%emt 00:00:05]} 41.
Bg8 {[%clk 00:20:25]} {[%emt 00:00:43]} h6 {[%clk 01:29:04]} {[%emt 00:00:24]}
42. Bb3 {[%clk 00:19:51]} {[%emt 00:01:03]} f3 {[%clk 01:29:22]} {[%emt
00:00:13]} 43. Bc4 {[%clk 00:11:58]} {[%emt 00:08:23]} Kf4 {[%clk 01:29:07]}
{[%emt 00:00:45]} 44. Be6 {[%clk 00:10:59]} {[%emt 00:01:29]} Bd4 {[%clk
01:29:19]} {[%emt 00:00:18]} 45. h4 {[%clk 00:07:08]} {[%emt 00:04:21]} Kg3
{[%clk 01:29:33]} {[%emt 00:00:16]} 46. Bd5 {[%clk 00:05:49]} {[%emt 00:01:50]}
b3 {[%clk 01:29:34]} {[%emt 00:00:28]} 47. Bxb3 {[%clk 00:04:29]} {[%emt
00:01:50]} f2 {[%clk 01:30:00]} {[%emt 00:00:05]} 48. Ke2 {[%clk 00:04:27]}
{[%emt 00:00:31]} Kg2 {[%clk 01:30:24]} {[%emt 00:00:05]} 0-1

[Event "Masters Tournament (MTO)"]
[Site "Biel, Switzerland"]
[Date "2026.07.14"]
[Round "2.33"]
[White "Papaux, Jeremie"]
[Black "Magnussen, Petur Gardar"]
[Result "1-0"]
[TimeControl "100+30+30sec/move"]
[WhiteTitle "-"]
[BlackTitle "-"]
[WhiteFideId "1340867"]
[BlackFideId "7203802"]
[WhiteElo "2102"]
[BlackElo "1957"]

1. d4 {[%clk 01:40:56]} d5 {[%clk 01:40:53]} {[%emt 00:00:08]} 2. c4 {[%clk
01:41:22]} {[%emt 00:00:06]} e6 {[%clk 01:41:19]} {[%emt 00:00:03]} 3. Nf3
{[%clk 01:41:47]} {[%emt 00:00:05]} c5 {[%clk 01:40:14]} {[%emt 00:01:35]} 4.
cxd5 {[%clk 01:42:10]} {[%emt 00:00:07]} exd5 {[%clk 01:40:38]} {[%emt
00:00:06]} 5. Bg5 {[%clk 01:42:17]} {[%emt 00:00:22]} Be7 {[%clk 01:34:31]}
{[%emt 00:06:37]} 6. Bxe7 {[%clk 01:42:06]} {[%emt 00:00:41]} Nxe7 {[%clk
01:34:52]} {[%emt 00:00:09]} 7. dxc5 {[%clk 01:40:06]} {[%emt 00:02:32]} Qa5+
{[%clk 01:28:46]} {[%emt 00:06:37]} 8. Nc3 {[%clk 01:40:20]} {[%emt 00:00:16]}
Qxc5 {[%clk 01:28:10]} {[%emt 00:01:06]} 9. e3 {[%clk 01:36:35]} {[%emt
00:04:14]} Nbc6 {[%clk 01:26:17]} {[%emt 00:02:23]} 10. Bd3 {[%clk 01:32:58]}
{[%emt 00:04:07]} O-O {[%clk 01:22:54]} {[%emt 00:03:54]} 11. O-O {[%clk
01:30:11]} {[%emt 00:03:17]} h6 {[%clk 01:14:44]} {[%emt 00:08:39]} 12. Rc1
{[%clk 01:27:39]} {[%emt 00:03:02]} Bg4 {[%clk 01:10:38]} {[%emt 00:04:37]} 13.
h3 {[%clk 01:24:14]} {[%emt 00:03:54]} Bxf3 {[%clk 01:04:31]} {[%emt 00:06:37]}
14. Qxf3 {[%clk 01:24:32]} {[%emt 00:00:12]} Ne5 {[%clk 01:03:02]} {[%emt
00:01:59]} 15. Qe2 {[%clk 01:24:53]} {[%emt 00:00:09]} Nxd3 {[%clk 01:00:50]}
{[%emt 00:02:43]} 16. Qxd3 {[%clk 01:25:16]} {[%emt 00:00:07]} Rfd8 {[%clk
00:59:35]} {[%emt 00:01:44]} 17. Rfd1 {[%clk 01:24:20]} {[%emt 00:01:25]} Qa5
{[%clk 00:58:14]} {[%emt 00:01:53]} 18. Qb5 {[%clk 01:21:17]} {[%emt 00:03:33]}
Qxb5 {[%clk 00:55:50]} {[%emt 00:02:54]} 19. Nxb5 {[%clk 01:21:40]} {[%emt
00:00:07]} Rd7 {[%clk 00:47:26]} {[%emt 00:08:54]} 20. Rd2 {[%clk 01:20:02]}
{[%emt 00:02:07]} a6 {[%clk 00:42:49]} {[%emt 00:05:07]} 21. Nc3 {[%clk
01:20:14]} {[%emt 00:00:18]} Rad8 {[%clk 00:42:51]} {[%emt 00:00:29]} 22. Rcd1
{[%clk 01:19:33]} {[%emt 00:01:10]} f6 {[%clk 00:41:03]} {[%emt 00:02:18]} 23.
Rd4 {[%clk 01:13:15]} {[%emt 00:06:48]} Kf7 {[%clk 00:39:49]} {[%emt 00:01:44]}
24. e4 {[%clk 01:12:44]} {[%emt 00:01:01]} Ke6 {[%clk 00:38:29]} {[%emt
00:01:51]} 25. Na4 {[%clk 01:12:34]} {[%emt 00:00:40]} Rc7 {[%clk 00:35:46]}
{[%emt 00:03:13]} 26. Nb6 {[%emt 00:04:27]} Rc2 {[%clk 00:34:00]} 27. exd5+
{[%clk 01:09:48]} {[%emt 00:01:33]} Kd6 {[%clk 00:33:42]} {[%emt 00:00:50]} 28.
Re4 {[%clk 01:06:41]} {[%emt 00:03:36]} Nf5 {[%clk 00:31:39]} {[%emt 00:02:33]}
29. Nc4+ {[%clk 01:04:01]} {[%emt 00:03:09]} Kc5 {[%clk 00:31:18]} {[%emt
00:00:51]} 30. b4+ {[%clk 01:02:45]} {[%emt 00:01:47]} 1-0

[Event "Masters Tournament (MTO)"]
[Site "Biel, Switzerland"]
[Date "2026.07.14"]
[Round "2.34"]
[White "Celis, Joel"]
[Black "Monteverde, Jonathan"]
[Result "0-1"]
[TimeControl "100+30+30sec/move"]
[WhiteTitle "-"]
[BlackTitle "-"]
[WhiteFideId "15400212"]
[BlackFideId "1314580"]
[WhiteElo "1981"]
[BlackElo "2098"]

1. e4 {[%clk 01:37:01]} {[%emt 00:03:59]} c5 {[%clk 01:40:39]} {[%emt
00:00:21]} 2. Nf3 {[%clk 01:37:19]} {[%emt 00:00:13]} d6 {[%clk 01:41:01]}
{[%emt 00:00:07]} 3. d4 {[%clk 01:37:44]} {[%emt 00:00:06]} cxd4 {[%clk
01:41:26]} {[%emt 00:00:05]} 4. Nxd4 {[%clk 01:38:10]} {[%emt 00:00:03]} Nf6
{[%clk 01:41:50]} {[%emt 00:00:06]} 5. Nc3 {[%clk 01:38:34]} {[%emt 00:00:07]}
a6 {[%clk 01:42:13]} {[%emt 00:00:07]} 6. Be2 {[%clk 01:38:44]} {[%emt
00:00:20]} e5 {[%clk 01:41:24]} {[%emt 00:01:18]} 7. Nb3 {[%clk 01:39:03]}
{[%emt 00:00:12]} Be7 {[%clk 01:40:28]} {[%emt 00:01:26]} 8. Be3 {[%clk
01:39:21]} {[%emt 00:00:10]} Be6 {[%clk 01:40:26]} {[%emt 00:00:33]} 9. g4
{[%clk 01:37:17]} {[%emt 00:02:34]} d5 {[%clk 01:28:11]} {[%emt 00:12:47]} 10.
exd5 {[%clk 01:36:44]} {[%emt 00:01:04]} Nxd5 {[%clk 01:28:28]} {[%emt
00:00:13]} 11. Nxd5 {[%clk 01:36:28]} {[%emt 00:00:47]} Bxd5 {[%clk 01:23:27]}
{[%emt 00:05:30]} 12. Rg1 {[%clk 01:27:31]} {[%emt 00:09:27]} Nc6 {[%clk
01:05:08]} {[%emt 00:18:49]} 13. c3 {[%clk 01:20:53]} {[%emt 00:07:08]} Rc8
{[%clk 00:55:19]} {[%emt 00:10:18]} 14. Nd2 {[%clk 01:08:12]} {[%emt 00:13:12]}
O-O {[%clk 00:49:33]} {[%emt 00:06:16]} 15. g5 {[%clk 00:53:55]} {[%emt
00:14:46]} Na5 {[%clk 00:43:44]} {[%emt 00:06:20]} 16. Rg4 {[%clk 00:41:36]}
{[%emt 00:12:49]} Be6 {[%clk 00:38:56]} {[%emt 00:05:17]} 17. b4 {[%clk
00:39:10]} {[%emt 00:02:57]} Bxg4 {[%clk 00:34:42]} {[%emt 00:04:43]} 18. Bxg4
{[%clk 00:39:04]} {[%emt 00:00:37]} Nc4 {[%clk 00:34:52]} {[%emt 00:00:19]} 19.
Bxc8 {[%clk 00:30:56]} {[%emt 00:08:38]} Nxe3 {[%clk 00:34:55]} {[%emt
00:00:27]} 20. fxe3 {[%clk 00:31:07]} {[%emt 00:00:19]} Qxc8 {[%clk 00:35:18]}
{[%emt 00:00:08]} 21. Ne4 {[%clk 00:29:46]} {[%emt 00:01:51]} Qh3 {[%clk
00:34:46]} {[%emt 00:01:02]} 22. Qe2 {[%clk 00:28:55]} {[%emt 00:01:21]} Bxg5
{[%clk 00:28:58]} {[%emt 00:07:46]} 23. Nxg5 {[%clk 00:29:02]} Qh4+ {[%clk
00:29:21]} 24. Qf2 {[%clk 00:29:07]} Qxg5 {[%clk 00:29:43]} 25. O-O-O {[%clk
00:29:18]} Qg4 {[%clk 00:26:54]} {[%emt 00:03:13]} 26. Kb2 {[%clk 00:27:42]}
{[%emt 00:02:04]} 0-1

[Event "Masters Tournament (MTO)"]
[Site "Biel, Switzerland"]
[Date "2026.07.14"]
[Round "2.35"]
[White "Schmidt, Florian Pascal"]
[Black "Simon, Ralf-Axel"]
[Result "1-0"]
[TimeControl "100+30+30sec/move"]
[WhiteTitle "-"]
[BlackTitle "-"]
[WhiteFideId "16256840"]
[BlackFideId "4603125"]
[WhiteElo "2095"]
[BlackElo "1935"]

1. e4 {[%clk 01:40:56]} {[%emt 00:00:05]} e5 {[%clk 01:39:49]} {[%emt
00:01:10]} 2. Nf3 {[%clk 01:41:07]} {[%emt 00:00:19]} Nc6 {[%clk 01:39:00]}
{[%emt 00:01:12]} 3. Bb5 {[%clk 01:41:10]} {[%emt 00:00:34]} Nf6 {[%clk
01:36:07]} {[%emt 00:03:22]} 4. d3 {[%clk 01:41:28]} {[%emt 00:00:13]} Bc5
{[%clk 01:30:33]} {[%emt 00:06:05]} 5. O-O {[%clk 01:41:20]} {[%emt 00:00:39]}
Nd4 {[%clk 01:00:57]} {[%emt 00:30:06]} 6. Nxd4 {[%clk 01:40:16]} {[%emt
00:01:35]} Bxd4 {[%clk 01:01:09]} {[%emt 00:00:17]} 7. c3 {[%clk 01:40:07]}
{[%emt 00:00:38]} Bb6 {[%clk 01:00:55]} {[%emt 00:00:44]} 8. Bg5 {[%clk
01:36:32]} {[%emt 00:04:05]} h6 {[%clk 00:46:39]} {[%emt 00:14:47]} 9. Bh4
{[%clk 01:36:03]} {[%emt 00:00:58]} c6 {[%clk 00:41:08]} {[%emt 00:06:02]} 10.
Ba4 {[%clk 01:35:04]} {[%emt 00:01:28]} O-O {[%clk 00:37:24]} {[%emt 00:04:13]}
11. Re1 {[%clk 01:33:28]} {[%emt 00:02:07]} d6 {[%clk 00:32:24]} {[%emt
00:05:31]} 12. Nd2 {[%clk 01:29:32]} {[%emt 00:04:26]} g5 {[%clk 00:24:06]}
{[%emt 00:08:43]} 13. Bg3 {[%clk 01:29:47]} {[%emt 00:00:19]} Bg4 {[%clk
00:23:19]} {[%emt 00:01:17]} 14. Qc1 {[%clk 01:28:55]} {[%emt 00:01:23]} Bh5
{[%clk 00:14:39]} {[%emt 00:09:08]} 15. Nc4 {[%clk 01:22:58]} {[%emt 00:06:29]}
Bc7 {[%clk 00:13:53]} {[%emt 00:01:16]} 16. Ne3 {[%clk 01:23:05]} {[%emt
00:00:22]} Bg6 {[%clk 00:12:29]} {[%emt 00:01:54]} 17. Bb3 {[%clk 01:14:12]}
{[%emt 00:09:24]} Qd7 {[%clk 00:12:05]} {[%emt 00:00:54]} 18. Qd2 {[%clk
01:10:13]} {[%emt 00:04:28]} Kg7 {[%clk 00:11:07]} {[%emt 00:01:29]} 19. f3
{[%clk 01:08:37]} {[%emt 00:02:06]} Rae8 {[%clk 00:10:54]} {[%emt 00:00:42]} 20.
d4 {[%clk 01:04:43]} {[%emt 00:04:25]} Re7 {[%clk 00:08:07]} {[%emt 00:03:17]}
21. Rad1 {[%clk 01:04:02]} {[%emt 00:01:11]} Qc8 {[%clk 00:03:07]} {[%emt
00:05:31]} 22. h4 {[%clk 00:52:09]} {[%emt 00:12:23]} Rfe8 {[%clk 00:02:07]}
{[%emt 00:01:30]} 23. Nc4 {[%clk 00:29:32]} {[%emt 00:23:06]} Rd8 {[%clk
00:00:46]} {[%emt 00:01:51]} 24. hxg5 {[%clk 00:29:36]} {[%emt 00:00:26]} hxg5
{[%clk 00:01:12]} {[%emt 00:00:04]} 25. Qxg5 {[%clk 00:29:47]} {[%emt
00:00:18]} Kf8 {[%emt 00:01:35]} 1-0